fUSD/lending_fUSD_20240125
["ID","MTS","AMOUNT","RATE_DAILY","PERIOD"]
[312682621,1706145084603,-500.0,0.00050136,31]
[312682622,1706145084613,-887.42,0.00050136,31]
[312682623,1706145084623,-500.0,0.00050136,31]
[312682624,1706145084632,-633.04,0.00050136,31]
[312682625,1706145084648,-500.0,0.00050136,31]
[312682626,1706145084670,-706.67,0.00050136,31]
[312682627,1706145084685,-500.0,0.00050136,31]
[312682628,1706145084707,-778.86,0.00050136,31]
[312682629,1706145084723,-639.06,0.00050136,31]
[312682630,1706145084740,-4966.08,0.00050136,31]
[312682631,1706145084757,-712.26,0.00050136,31]
[312682632,1706145084773,-500.0,0.00050136,31]
[312682633,1706145084792,-1315.35,0.00050136,31]
[312682634,1706145084810,-740.74,0.00050136,31]
[312682635,1706145084831,-564.19,0.00050136,31]
[312682636,1706145084852,-645.15,0.00050136,31]
[312682637,1706145084868,-765.5,0.00050136,31]
[312682638,1706145084881,-500.0,0.00050136,31]
[312682639,1706145084897,-1073.61,0.00050136,31]
[312682640,1706145084913,-432.40162849,0.00050136,31]
[312682641,1706145084929,-539.53,0.00050136,31]
[312682642,1706145084943,-500.0,0.00050136,31]
[312682643,1706145084958,-751.1,0.00050136,31]
[312682644,1706145084973,-500.0,0.00050136,31]
[312682645,1706145084987,-553.53,0.00050136,31]
[312682646,1706145085001,-500.0,0.00050136,31]
[312682647,1706145085017,-537.1,0.00050136,31]
[312682648,1706145085031,-608.69,0.00050136,31]
[312682649,1706145085045,-649.59,0.00050136,31]
[312682650,1706145085060,-3061.04,0.00050136,31]
[312682651,1706145085077,-875.62,0.00050136,31]
[312682652,1706145085091,-500.0,0.00050136,31]
[312682653,1706145085106,-769.1,0.00050136,31]
[312682654,1706145085121,-1451.54,0.00050136,31]
[312682655,1706145085135,-500.0,0.00050136,31]
[312682656,1706145085150,-860.59,0.00050136,31]
[312682657,1706145085164,-500.0,0.00050136,31]
[312682658,1706145085179,-703.22,0.00050136,31]
[312682659,1706145085194,-992.0,0.00050136,31]
[312682660,1706145085208,-737.72,0.00050136,31]
[312682661,1706145085225,-658.3,0.00050136,31]
[312682662,1706145085240,-500.0,0.00050136,31]
[312682663,1706145085254,-500.0,0.00050136,31]
[312682664,1706145085269,-500.0,0.00050136,31]
[312682665,1706145085284,-500.0,0.00050136,31]
[312682666,1706145085298,-500.0,0.00050136,31]
[312682667,1706145085315,-500.0,0.00050136,31]
[312682668,1706145085330,-655.7,0.00050136,31]
[312682669,1706145085345,-599.29,0.00050136,31]
[312682670,1706145085359,-764.66,0.00050136,31]
[312682671,1706145085374,-500.0,0.00050136,31]
[312682672,1706145085389,-3144.18,0.00050136,31]
[312682673,1706145085403,-548.31,0.00050136,31]
[312682674,1706145085418,-673.27,0.00050136,31]
[312682675,1706145085431,-500.0,0.00050136,31]
[312682676,1706145085446,-178.23616883,0.00050136,31]
[312682677,1706145085461,-765.11,0.00050136,31]
[312682678,1706145085477,-730.54,0.00050136,31]
[312682679,1706145085491,-500.0,0.00050136,31]
[312682680,1706145085505,-500.0,0.00050136,31]
[312682681,1706145085520,-515.5,0.00050136,31]
[312682682,1706145085537,-5000.0,0.00050136,14]
[312682683,1706145085553,-1295.4,0.00050136,31]
[312682684,1706145085570,-618.61,0.00050136,31]
[312682685,1706145085584,-500.0,0.00050136,31]
[312682686,1706145085599,-500.0,0.00050136,31]
[312682687,1706145085614,-500.0,0.00050136,31]
[312682688,1706145085629,-792.67,0.00050136,31]
[312682689,1706145085643,-512.3782181,0.00050136,31]
[312682690,1706145085657,-600.26,0.00050136,31]
[312682691,1706145085671,-1247.69,0.00050136,31]
[312682692,1706145085686,-500.0,0.00050136,31]
[312682693,1706145085705,-544.99830677,0.00050136,31]
[312682694,1706145085719,-501.79,0.00050136,31]
[312682695,1706145085735,-678.69,0.00050136,31]
[312682696,1706145085752,-500.0,0.00050136,31]
[312682697,1706145085767,-560.58,0.00050136,31]
[312682698,1706145085783,-748.16,0.00050136,31]
[312682699,1706145085798,-689.9,0.00050136,31]
[312682700,1706145085814,-3710.41,0.00050136,31]
[312682701,1706145085830,-500.0,0.00050136,120]
[312682702,1706145085846,-1129.79,0.00050136,31]
[312682703,1706145085861,-500.0,0.00050136,31]
[312682704,1706145085876,-500.0,0.00050136,31]
[312682705,1706145085891,-500.0,0.00050136,31]
[312682706,1706145085905,-500.0,0.00050136,31]
[312682707,1706145085918,-2615.23,0.00050136,31]
[312682708,1706145085932,-536.66,0.00050136,31]
[312682709,1706145085947,-500.0,0.00050136,31]
[312682710,1706145085962,-1281.32,0.00050136,31]
[312682711,1706145085978,-820.44,0.00050136,31]
[312682712,1706145085992,-500.0,0.00050136,31]
[312682713,1706145086006,-1013.31,0.00050136,31]
[312682714,1706145086021,-500.0,0.00050136,31]
[312682715,1706145086035,-500.0,0.00050136,31]
[312682716,1706145086050,-500.0,0.00050136,31]
[312682717,1706145086065,-534.36523815,0.00050136,31]
[312682718,1706145086079,-571.87,0.00050136,31]
[312682719,1706145086093,-500.0,0.00050136,31]
[312682720,1706145086107,-605.74,0.00050136,31]
[312682721,1706145086122,-500.0,0.00050136,31]
[312682722,1706145086136,-500.0,0.00050136,31]
[312682723,1706145086149,-500.0,0.00050136,31]
[312682724,1706145086163,-500.0,0.00050136,31]
[312682725,1706145086177,-537.66,0.00050136,31]
[312682726,1706145086192,-756.21,0.00050136,31]
[312682727,1706145086206,-594.93,0.00050136,2]
[312682728,1706145086219,-500.0,0.00050136,31]
[312682729,1706145086233,-500.0,0.00050136,31]
[312682730,1706145086247,-500.0,0.00050136,31]
[312682731,1706145086261,-724.18,0.00050136,31]
[312682732,1706145086274,-724.25,0.00050136,31]
[312682733,1706145086289,-2993.87,0.00050136,31]
[312682734,1706145086303,-618.86,0.00050136,31]
[312682735,1706145086317,-500.0,0.00050136,31]
[312682736,1706145086332,-612.72,0.00050136,31]
[312682737,1706145086348,-500.0,0.00050136,31]
[312682738,1706145086360,-500.0,0.00050136,31]
[312682739,1706145086369,-887.79,0.00050136,31]
[312682740,1706145086379,-514.92,0.00050136,31]
[312682741,1706145086389,-500.0,0.00050136,31]
[312682742,1706145086655,-500.0,0.00050136,31]
[312682743,1706145086670,-1822.59,0.00050136,2]
[312682744,1706145086684,-500.0,0.00050136,31]
[312682745,1706145086693,-500.0,0.00050136,31]
[312682746,1706145086703,-939.98,0.00050136,31]
[312682747,1706145086713,-1226.02,0.00050136,31]
[312682748,1706145086722,-500.0,0.00050136,31]
[312682749,1706145086732,-500.0,0.00050136,31]
[312682750,1706145086742,-508.04,0.00050136,31]
[312682751,1706145086751,-500.0,0.00050136,31]
[312682752,1706145086760,-500.0,0.00050136,31]
[312682753,1706145086770,-681.8,0.00050136,31]
[312682754,1706145086780,-646.07,0.00050136,31]
[312682755,1706145086790,-500.0,0.00050136,31]
[312682756,1706145086799,-836.07,0.00050136,31]
[312682757,1706145086809,-228.0,0.00050137,4]
[312682758,1706145086819,-647.69,0.00050191,120]
[312682759,1706145086828,-160.04158346,0.000502,30]
[312682760,1706145086838,-269.63746183,0.000502,120]
[312682761,1706145086847,-203.39231776,0.0005022,120]
[312682762,1706145086857,-589.71,0.00050269,14]
[312682763,1706145086867,-151.72488393,0.00050349,2]
[312682764,1706145086878,-1079.83014803,0.0005035,2]
[312682765,1706145086888,-150.0,0.0005035,30]
[312682766,1706145086898,-500.0,0.00050363,18]
[312682767,1706145086907,-233.38585,0.00050376,2]
[312682768,1706145086918,-300.0,0.00050409,2]
[312682769,1706145086929,-300.0,0.00050409,2]
[312682770,1706145086938,-300.0,0.00050409,2]
[312682771,1706145086947,-300.0,0.00050409,2]
[312682772,1706145086957,-164.61217631,0.00050409,2]
[312682773,1706145086967,-500.0,0.0005041,31]
[312682774,1706145086977,-500.0,0.0005041,31]
[312682775,1706145086986,-500.0,0.0005041,31]
[312682776,1706145086995,-500.0,0.0005041,31]
[312682777,1706145087005,-500.0,0.0005041,31]
[312682778,1706145087014,-584.90596553,0.0005041,31]
[312682779,1706145087024,-500.0,0.0005041,31]
[312682780,1706145087033,-500.0,0.0005041,31]
[312682781,1706145087042,-500.0,0.0005041,31]
[312682782,1706145087052,-500.0,0.0005041,31]
[312682783,1706145087061,-500.0,0.0005041,31]
[312682784,1706145087072,-500.0,0.0005041,31]
[312682785,1706145087082,-500.0,0.0005041,31]
[312682786,1706145087091,-500.0,0.0005041,31]
[312682787,1706145087101,-500.0,0.0005041,31]
[312682788,1706145087112,-500.0,0.0005041,31]
[312682789,1706145087122,-500.0,0.0005041,31]
[312682790,1706145087132,-500.0,0.0005041,31]
[312682791,1706145087141,-500.0,0.0005041,31]
[312682792,1706145087151,-500.0,0.0005041,31]
[312682793,1706145087161,-250.0,0.0005041,31]
[312682794,1706145087170,-500.0,0.0005041,31]
[312682795,1706145087179,-571.81,0.0005041,31]
[312682796,1706145087189,-500.0,0.0005041,31]
[312682797,1706145087198,-500.0,0.0005041,31]
[312682798,1706145087207,-500.0,0.0005041,31]
[312682799,1706145087216,-500.0,0.0005041,31]
[312682800,1706145087226,-1000.0,0.0005041,7]
[312682801,1706145087235,-500.0,0.0005041,31]
[312682802,1706145087245,-569.3,0.0005041,31]
[312682803,1706145087257,-500.0,0.0005041,31]
[312682804,1706145087266,-500.0,0.0005041,31]
[312682805,1706145087275,-500.0,0.0005041,31]
[312682806,1706145087285,-500.0,0.0005041,30]
[312682807,1706145087294,-500.0,0.0005041,31]
[312682808,1706145087304,-500.0,0.0005041,31]
[312682809,1706145087313,-500.0,0.0005041,31]
[312682810,1706145087324,-500.0,0.0005041,31]
[312682811,1706145087333,-607.8,0.0005041,31]
[312682812,1706145087343,-500.0,0.0005041,31]
[312682813,1706145087354,-500.0,0.0005041,31]
[312682814,1706145087364,-500.0,0.0005041,31]
[312682815,1706145087374,-510.64,0.0005041,31]
[312682816,1706145087383,-500.0,0.0005041,31]
[312682817,1706145087392,-500.0,0.0005041,31]
[312682818,1706145087401,-500.0,0.0005041,31]
[312682819,1706145087412,-500.0,0.0005041,31]
[312682820,1706145087423,-500.0,0.0005041,31]
[312682821,1706145087433,-563.82,0.0005041,31]
[312682822,1706145087443,-500.0,0.0005041,31]
[312682823,1706145087455,-500.0,0.0005041,31]
[312682824,1706145087465,-510.96,0.0005041,31]
[312682825,1706145087475,-500.0,0.0005041,31]
[312682826,1706145087486,-500.0,0.0005041,31]
[312682827,1706145087496,-545.8,0.0005041,31]
[312682828,1706145087506,-500.0,0.0005041,31]
[312682829,1706145087514,-547.01,0.0005041,31]
[312682830,1706145087528,-500.0,0.0005041,31]
[312682831,1706145087539,-500.0,0.0005041,31]
[312682832,1706145087549,-500.0,0.0005041,31]
[312682833,1706145087558,-500.0,0.0005041,31]
[312682834,1706145087567,-500.0,0.0005041,31]
[312682835,1706145087577,-500.0,0.0005041,31]
[312682836,1706145087586,-181.85197506,0.0005041,31]
[312682837,1706145087596,-500.0,0.0005041,31]
[312682838,1706145087606,-500.0,0.0005041,31]
[312682839,1706145087617,-500.0,0.0005041,31]
[312682840,1706145087626,-500.0,0.0005041,31]
[312682841,1706145087637,-665.93,0.0005041,31]
[312682842,1706145087647,-500.0,0.0005041,31]
[312682843,1706145087657,-226.99417359,0.0005041,31]
[312682844,1706145087666,-500.0,0.0005041,31]
[312682845,1706145087675,-1000.0,0.0005041,7]
[312682846,1706145087685,-500.0,0.0005041,31]
[312682847,1706145087696,-500.0,0.0005041,31]
[312682848,1706145087708,-500.0,0.0005041,31]
[312682849,1706145087717,-629.99247385,0.0005041,31]
[312682850,1706145087726,-500.0,0.0005041,31]
[312682851,1706145087735,-500.0,0.0005041,31]
[312682852,1706145087745,-500.0,0.0005041,31]
[312682853,1706145087755,-500.0,0.0005041,31]
[312682854,1706145087764,-4118.15,0.0005041,15]
[312682855,1706145087773,-500.0,0.0005041,31]
[312682856,1706145087783,-937.73,0.0005041,2]
[312682857,1706145087792,-523.13,0.0005041,31]
[312682858,1706145087802,-1968.51,0.0005041,31]
[312682859,1706145087811,-500.0,0.0005041,31]
[312682860,1706145087821,-500.0,0.0005041,31]
[312682861,1706145087830,-500.0,0.0005041,31]
[312682862,1706145087839,-539.3,0.0005041,31]
[312682863,1706145087848,-500.0,0.0005041,31]
[312682864,1706145087858,-527.19903318,0.0005041,31]
[312682865,1706145087867,-500.0,0.0005041,31]
[312682866,1706145087876,-500.0,0.0005041,31]
[312682867,1706145087885,-500.0,0.0005041,31]
[312682868,1706145087894,-4141.1,0.0005041,31]
[312682869,1706145087903,-500.0,0.0005041,31]
[312682870,1706145087913,-500.0,0.0005041,31]
[312682871,1706145087922,-381.96794611,0.0005041,31]
[312682872,1706145087932,-500.0,0.0005041,31]
[312682873,1706145087941,-500.0,0.0005041,31]
[312682874,1706145087950,-500.0,0.0005041,31]
[312682875,1706145087959,-500.0,0.0005041,31]
[312682876,1706145087969,-500.0,0.0005041,31]
[312682877,1706145087978,-500.0,0.0005041,31]
[312682878,1706145087988,-456.1565196,0.0005041,31]
[312682879,1706145087998,-500.0,0.0005041,2]
[312682880,1706145088008,-792.61,0.0005041,31]
[312682881,1706145088017,-500.0,0.0005041,31]
[312682882,1706145088026,-500.0,0.0005041,31]
[312682883,1706145088036,-500.0,0.0005041,31]
[312682884,1706145088045,-500.0,0.0005041,31]
[312682885,1706145088054,-500.0,0.0005041,31]
[312682886,1706145088064,-500.0,0.0005041,2]
[312682887,1706145088074,-500.0,0.0005041,31]
[312682888,1706145088083,-500.0,0.0005041,31]
[312682889,1706145088092,-500.0,0.0005041,31]
[312682890,1706145088102,-702.69,0.0005041,31]
[312682891,1706145088111,-500.0,0.0005041,31]
[312682892,1706145088120,-500.0,0.0005041,31]
[312682893,1706145088129,-500.0,0.0005041,31]
[312682894,1706145088138,-500.0,0.0005041,31]
[312682895,1706145088148,-668.66,0.0005041,31]
[312682896,1706145088157,-619.19,0.0005041,31]
[312682897,1706145088166,-500.0,0.0005041,31]
[312682898,1706145088175,-500.0,0.0005041,31]
[312682899,1706145088184,-953.39,0.0005041,31]
[312682900,1706145088193,-500.0,0.0005041,31]
[312682901,1706145088203,-500.0,0.0005041,31]
[312682902,1706145088212,-500.0,0.0005041,31]
[312682903,1706145088221,-500.0,0.0005041,31]
[312682904,1706145088230,-500.0,0.0005041,31]
[312682905,1706145088239,-500.0,0.0005041,31]
[312682906,1706145088249,-500.0,0.0005041,31]
[312682907,1706145088258,-500.0,0.0005041,31]
[312682908,1706145088268,-500.0,0.0005041,31]
[312682909,1706145088277,-500.0,0.0005041,31]
[312682910,1706145088286,-524.2,0.0005041,31]
[312682911,1706145088296,-500.0,0.0005041,31]
[312682912,1706145088305,-500.0,0.0005041,31]
[312682913,1706145088314,-500.0,0.0005041,31]
[312682914,1706145088325,-500.0,0.0005041,31]
[312682915,1706145088334,-500.0,0.0005041,31]
[312682916,1706145088344,-781.79,0.0005041,31]
[312682917,1706145088353,-500.0,0.0005041,31]
[312682918,1706145088362,-500.0,0.0005041,10]
[312682919,1706145088372,-500.0,0.0005041,31]
[312682920,1706145088381,-718.1,0.0005041,31]
[312682921,1706145088390,-500.0,0.0005041,31]
[312682922,1706145088400,-500.0,0.0005041,31]
[312682923,1706145088410,-558.82,0.0005041,31]
[312682924,1706145088420,-500.0,0.0005041,31]
[312682925,1706145088429,-500.0,0.0005041,31]
[312682926,1706145088438,-500.0,0.0005041,31]
[312682927,1706145088447,-500.0,0.0005041,31]
[312682928,1706145088456,-500.0,0.0005041,31]
[312682929,1706145088466,-500.0,0.0005041,31]
[312682930,1706145088475,-500.0,0.0005041,31]
[312682931,1706145088484,-500.0,0.0005041,31]
[312682932,1706145088494,-500.0,0.0005041,31]
[312682933,1706145088503,-500.0,0.0005041,31]
[312682934,1706145088513,-500.0,0.0005041,31]
[312682935,1706145088522,-500.0,0.0005041,31]
[312682936,1706145088531,-719.02,0.0005041,31]
[312682937,1706145088544,-500.0,0.0005041,31]
[312682938,1706145088553,-500.0,0.0005041,31]
[312682939,1706145088562,-500.0,0.0005041,31]
[312682940,1706145088571,-500.0,0.0005041,31]
[312682941,1706145088580,-530.57,0.0005041,31]
[312682942,1706145088589,-590.77,0.0005041,31]
[312682943,1706145088598,-500.0,0.0005041,31]
[312682944,1706145088607,-500.0,0.0005041,31]
[312682945,1706145088617,-500.0,0.0005041,31]
[312682946,1706145088627,-500.0,0.0005041,31]
[312682947,1706145088637,-500.0,0.0005041,31]
[312682948,1706145088646,-500.0,0.0005041,31]
[312682949,1706145088655,-1141.79,0.0005041,31]
[312682950,1706145088664,-326.13290393,0.0005041,31]
[312682951,1706145088674,-500.0,0.0005041,31]
[312682952,1706145088683,-500.0,0.0005041,31]
[312682953,1706145088692,-626.76,0.0005041,31]
[312682954,1706145088702,-500.0,0.0005041,31]
[312682955,1706145088711,-500.0,0.0005041,31]
[312682956,1706145088720,-500.0,0.0005041,31]
[312682957,1706145088730,-500.0,0.0005041,31]
[312682958,1706145088739,-500.0,0.0005041,31]
[312682959,1706145088748,-500.0,0.0005041,31]
[312682960,1706145088760,-500.0,0.0005041,31]
[312682961,1706145088769,-500.0,0.0005041,31]
[312682962,1706145088778,-500.0,0.0005041,31]
[312682963,1706145088787,-500.0,0.0005041,31]
[312682964,1706145088797,-529.72,0.0005041,31]
[312682965,1706145088806,-502.97,0.0005041,31]
[312682966,1706145088815,-500.0,0.0005041,31]
[312682967,1706145088825,-500.0,0.0005041,31]
[312682968,1706145088834,-500.0,0.0005041,31]
[312682969,1706145088843,-500.0,0.0005041,31]
[312682970,1706145088852,-992.14,0.0005041,120]
[312682971,1706145088861,-500.0,0.0005041,31]
[312682972,1706145088870,-500.0,0.0005041,31]
[312682973,1706145088880,-500.0,0.0005041,31]
[312682974,1706145088889,-500.0,0.0005041,31]
[312682975,1706145088899,-441.817826,0.0005041,31]
[312682976,1706145088909,-500.0,0.0005041,31]
[312682977,1706145088919,-500.0,0.0005041,31]
[312682978,1706145088929,-500.0,0.0005041,31]
[312682979,1706145088940,-500.0,0.0005041,31]
[312682980,1706145088950,-500.0,0.0005041,31]
[312682981,1706145088959,-500.0,0.0005041,31]
[312682982,1706145088969,-500.0,0.0005041,31]
[312682983,1706145088978,-500.0,0.0005041,31]
[312682984,1706145088988,-500.0,0.0005041,31]
[312682985,1706145088998,-500.0,0.0005041,60]
[312682986,1706145089007,-500.0,0.0005041,31]
[312682987,1706145089017,-507.31733703,0.0005041,31]
[312682988,1706145089027,-500.0,0.0005041,31]
[312682989,1706145089038,-697.72,0.0005041,2]
[312682990,1706145089048,-500.0,0.0005041,31]
[312682991,1706145089057,-500.0,0.0005041,31]
[312682992,1706145089066,-500.0,0.0005041,31]
[312682993,1706145089076,-500.0,0.0005041,31]
[312682994,1706145089086,-500.0,0.0005041,31]
[312682995,1706145089095,-796.46,0.0005041,31]
[312682996,1706145089104,-500.0,0.0005041,31]
[312682997,1706145089114,-500.0,0.0005041,31]
[312682998,1706145089123,-500.0,0.0005041,31]
[312682999,1706145089132,-500.0,0.0005041,31]
[312683000,1706145089142,-500.0,0.0005041,31]
[312683001,1706145089151,-502.99,0.0005041,31]
[312683002,1706145089160,-500.0,0.0005041,31]
[312683003,1706145089170,-500.0,0.0005041,31]
[312683004,1706145089179,-500.0,0.0005041,31]
[312683005,1706145089189,-1084.63,0.0005041,31]
[312683006,1706145089198,-500.0,0.0005041,31]
[312683007,1706145089208,-500.0,0.0005041,31]
[312683008,1706145089217,-500.0,0.0005041,31]
[312683009,1706145089226,-500.0,0.0005041,31]
[312683010,1706145089235,-500.0,0.0005041,31]
[312683011,1706145089244,-500.0,0.0005041,31]
[312683012,1706145089254,-500.0,0.0005041,31]
[312683013,1706145089263,-1233.91,0.0005041,7]
[312683014,1706145089272,-500.0,0.0005041,31]
[312683015,1706145089281,-500.0,0.0005041,31]
[312683016,1706145089291,-500.0,0.0005041,31]
[312683017,1706145089301,-500.0,0.0005041,31]
[312683018,1706145089310,-500.0,0.0005041,31]
[312683019,1706145089320,-500.0,0.0005041,31]
[312683020,1706145089330,-500.0,0.0005041,14]
[312683021,1706145089339,-500.0,0.0005041,31]
[312683022,1706145089348,-500.0,0.0005041,31]
[312683023,1706145089357,-500.0,0.0005041,31]
[312683024,1706145089367,-500.0,0.0005041,31]
[312683025,1706145089376,-500.0,0.0005041,31]
[312683026,1706145089385,-500.0,0.0005041,31]
[312683027,1706145089394,-500.0,0.0005041,31]
[312683028,1706145089403,-500.0,0.0005041,31]
[312683029,1706145089412,-500.0,0.0005041,31]
[312683030,1706145089421,-500.0,0.0005041,31]
[312683031,1706145089431,-669.25,0.0005041,20]
[312683032,1706145089440,-500.0,0.0005041,31]
[312683033,1706145089449,-500.0,0.0005041,31]
[312683034,1706145089458,-500.0,0.0005041,31]
[312683035,1706145089467,-500.0,0.0005041,31]
[312683036,1706145089476,-500.0,0.0005041,31]
[312683037,1706145089487,-500.0,0.0005041,31]
[312683038,1706145089496,-500.0,0.0005041,31]
[312683039,1706145089506,-500.0,0.0005041,31]
[312683040,1706145089515,-500.0,0.0005041,31]
[312683041,1706145089528,-543.21891689,0.0005041,31]
[312683042,1706145089538,-1309.13,0.0005041,7]
[312683043,1706145089547,-500.0,0.0005041,31]
[312683044,1706145089556,-500.0,0.0005041,31]
[312683045,1706145089566,-500.0,0.0005041,31]
[312683046,1706145089575,-500.0,0.0005041,31]
[312683047,1706145089584,-520.3,0.0005041,31]
[312683048,1706145089594,-500.0,0.0005041,31]
[312683049,1706145089605,-500.0,0.0005041,31]
[312683050,1706145089615,-500.0,0.0005041,31]
[312683051,1706145089624,-556.29377232,0.0005041,31]
[312683052,1706145089633,-500.0,0.0005041,31]
[312683053,1706145089643,-500.0,0.0005041,31]
[312683054,1706145089652,-500.0,0.0005041,31]
[312683055,1706145089662,-500.0,0.0005041,31]
[312683056,1706145089671,-983.18,0.0005041,31]
[312683057,1706145089680,-500.0,0.0005041,31]
[312683058,1706145089691,-523.88,0.0005041,31]
[312683059,1706145089701,-500.0,0.0005041,31]
[312683060,1706145089710,-500.0,0.0005041,31]
[312683061,1706145089721,-500.0,0.0005041,31]
[312683062,1706145089731,-500.0,0.0005041,31]
[312683063,1706145089740,-500.0,0.0005041,31]
[312683064,1706145089750,-500.0,0.0005041,31]
[312683065,1706145089758,-500.0,0.0005041,31]
[312683066,1706145089767,-1157.14,0.0005041,31]
[312683067,1706145089777,-500.0,0.0005041,31]
[312683068,1706145089786,-500.0,0.0005041,31]
[312683069,1706145089796,-603.83483522,0.0005041,31]
[312683070,1706145089805,-500.0,0.0005041,31]
[312683071,1706145089814,-500.0,0.0005041,31]
[312683072,1706145089824,-500.0,0.0005041,31]
[312683073,1706145089833,-594.98,0.0005041,31]
[312683074,1706145089842,-500.0,0.0005041,31]
[312683075,1706145089852,-500.0,0.0005041,31]
[312683076,1706145089861,-500.0,0.0005041,31]
[312683077,1706145089870,-500.0,0.0005041,31]
[312683078,1706145090046,-500.0,0.0005041,31]
[312683079,1706145090068,-500.0,0.0005041,31]
[312683080,1706145090078,-621.48,0.0005041,31]
[312683081,1706145090088,-500.0,0.0005041,31]
[312683082,1706145090097,-659.17,0.0005041,31]
[312683083,1706145090106,-500.0,0.0005041,31]
[312683084,1706145090114,-500.0,0.0005041,31]
[312683085,1706145090124,-701.09,0.0005041,31]
[312683086,1706145090134,-500.0,0.0005041,31]
[312683087,1706145090143,-1697.01,0.0005041,31]
[312683088,1706145090153,-500.0,0.0005041,31]
[312683089,1706145090163,-500.0,0.0005041,31]
[312683090,1706145090174,-500.0,0.0005041,31]
[312683091,1706145090184,-500.0,0.0005041,31]
[312683092,1706145090194,-500.0,0.0005041,31]
[312683093,1706145090203,-500.0,0.0005041,31]
[312683094,1706145090213,-500.0,0.0005041,31]
[312683095,1706145090223,-500.0,0.0005041,31]
[312683096,1706145090233,-523.57,0.0005041,31]
[312683097,1706145090242,-500.0,0.0005041,31]
[312683098,1706145090251,-500.0,0.0005041,31]
[312683099,1706145090261,-728.06,0.0005041,31]
[312683100,1706145090270,-500.0,0.0005041,31]
[312683101,1706145090280,-511.53,0.0005041,31]
[312683102,1706145090289,-500.0,0.0005041,31]
[312683103,1706145090299,-500.0,0.0005041,31]
[312683104,1706145090309,-500.0,0.0005041,31]
[312683105,1706145090318,-500.0,0.0005041,31]
[312683106,1706145090329,-665.87,0.0005041,31]
[312683107,1706145090339,-698.55,0.0005041,31]
[312683108,1706145090348,-500.0,0.0005041,31]
[312683109,1706145090358,-535.75,0.0005041,31]
[312683110,1706145090367,-500.0,0.0005041,31]
[312683111,1706145090376,-536.21025854,0.0005041,31]
[312683112,1706145090385,-500.0,0.0005041,31]
[312683113,1706145090394,-500.0,0.0005041,31]
[312683114,1706145090404,-973.03,0.0005041,2]
[312683115,1706145090413,-3653.94,0.0005041,31]
[312683116,1706145090422,-944.79,0.0005041,31]
[312683117,1706145090432,-500.0,0.0005041,31]
[312683118,1706145090441,-500.0,0.0005041,31]
[312683119,1706145090450,-500.0,0.0005041,31]
[312683120,1706145090459,-500.0,0.0005041,31]